[Event "Philip Hogarty Memorial GM 2019"]
[Site "Stillorgan"]
[Date "2019.01.04"]
[Round "4"]
[White "Maksimenko, Andrei"]
[Black "Fitzsimons, David"]
[Result "1/2-1/2"]
[ECO "E28"]
[WhiteElo "2484"]
[BlackElo "2301"]
[Annotator "ChessBase"]
[PlyCount "21"]
[EventDate "2019.01.02"]
[EventType "tourn"]
[EventCountry "IRL"]
[SourceTitle "playchess.com"]
[Source "ChessBase"]
[SourceQuality "1"]
[TimeControl "5400+30"]

1. d4 {[%emt 0:00:00]} Nf6 {[%emt 0:00:00]} 2. c4 {[%emt 0:00:00]} e6 {[%emt 0:00:00]} 3. Nc3 {[%emt 0:01:39]} Bb4 {[%emt 0:00:00]} 4. a3 {[%emt 0:00:47]} Bxc3+ {[%emt 0:00:00]} 5. bxc3 {[%emt 0:00:02]} c5 {[%emt 0:00:36]} 6. e3 {[%emt 0:04:26]} Nc6 {[%emt 0:00:09]} 7. Ne2 {[%emt 0:04:36]} O-O {[%emt 0:03:05]} 8. Ng3 {[%emt 0:03:42]} d5 {[%emt 0:03:53]} 9. cxd5 {[%emt 0:01:57]} Qxd5 {[%emt 0:01:03]} 10. Rb1 {[%emt 0:10:18]} Rd8 {[%emt 0:06:53]} 11. Ra1 {[%emt 1:08:03]} 1/2-1/2

[Event "Philip Hogarty Memorial GM 2019"]
[Site "Stillorgan"]
[Date "2019.01.04"]
[Round "4"]
[White "Glek, Igor"]
[Black "Quinn, Mark"]
[Result "0-1"]
[ECO "B47"]
[WhiteElo "2453"]
[BlackElo "2386"]
[Annotator "ChessBase"]
[PlyCount "90"]
[EventDate "2019.01.02"]
[EventType "tourn"]
[EventCountry "IRL"]
[SourceTitle "playchess.com"]
[Source "ChessBase"]
[SourceQuality "1"]
[TimeControl "5400+30"]

1. e4 {[%emt 0:06:03]} c5 {[%emt 0:01:26]} 2. Nf3 {[%emt 0:00:19]} e6 {[%emt 0:00:09]} 3. Nc3 {[%emt 0:00:06]} Nc6 {[%emt 0:00:55]} 4. d4 {[%emt 0:02:08]} cxd4 {[%emt 0:00:10]} 5. Nxd4 {[%emt 0:00:05]} Qc7 {[%emt 0:00:14]} 6. g3 {[%emt 0:02:02]} a6 {[%emt 0:01:53]} 7. Bg2 {[%emt 0:02:22]} d6 {[%emt 0:01:06]} 8. Nxc6 {[%emt 0:05:53]} bxc6 {[%emt 0:00:24]} 9. O-O {[%emt 0:00:02]} h5 {[%emt 0:02:57]} 10. h3 {[%emt 0:06:18]} e5 {[%emt 0:06:33]} 11. Na4 {[%emt 0:03:09]} Nf6 {[%emt 0:03:37]} 12. c4 {[%emt 0:00:13]} Be6 {[%emt 0:06:16]} 13. Qd3 {[%emt 0:12:42]} h4 {[%emt 0:01:34]} 14. g4 {[%emt 0:00:48]} Nd7 {[%emt 0:00:10]} 15. Be3 {[%emt 0:03:42]} Qa5 {[%emt 0:03:19]} 16. b3 {[%emt 0:02:09]} Be7 {[%emt 0:00:48]} 17. Rfc1 {[%emt 0:05:10]} O-O {[%emt 0:07:10]} 18. Bd2 {[%emt 0:06:50]} Qc7 {[%emt 0:02:04]} 19. b4 {[%emt 0:00:21]} Rfd8 {[%emt 0:01:56]} 20. Be3 {[%emt 0:03:55]} Rab8 {[%emt 0:01:46]} 21. Rab1 {[%emt 0:00:05]} Rb7 {[%emt 0:01:19]} 22. Bf1 {[%emt 0:06:20]} Qb8 {[%emt 0:01:42]} 23. a3 {[%emt 0:00:58]} Qa8 {[%emt 0:06:40]} 24. Rd1 {[%emt 0:10:40]} Nf8 {[%emt 0:09:27]} 25. Nc3 {[%emt 0:05:07]} Rc8 {[%emt 0:02:05]} 26. c5 {[%emt 0:03:11]} dxc5 {[%emt 0:00:23]} 27. bxc5 {[%emt 0:00:17]} Bb3 {[%emt 0:01:36]} 28. Rd2 {[%emt 0:08:38]} a5 {[%emt 0:01:34]} 29. Rdb2 {[%emt 0:00:59]} Rd7 {[%emt 0:03:16]} 30. Qa6 {[%emt 0:00:44]} Ra7 {[%emt 0:00:13]} 31. Qxc8 {[%emt 0:00:40]} Qxc8 {[%emt 0:00:10]} 32. Rxb3 {[%emt 0:00:02]} Qe6 {[%emt 0:07:03]} 33. Rb8 {[%emt 0:00:50]} Kh7 {[%emt 0:00:33]} 34. Re8 {[%emt 0:01:22]} Nd7 {[%emt 0:03:46]} 35. Rb2 {[%emt 0:02:18]} Nf6 {[%emt 0:02:26]} 36. Reb8 {[%emt 0:00:03]} Rd7 {[%emt 0:03:57]} 37. g5 {[%emt 0:00:44]} Ng8 {[%emt 0:03:35]} 38. Kh2 {[%emt 0:01:11]} Rd8 {[%emt 0:00:30]} 39. Rxd8 {[%emt 0:00:32]} Bxd8 {[%emt 0:00:05]} 40. Rb7 {[%emt 0:00:27]} Qg6 {[%emt 0:02:15]} 41. Bc4 {[%emt 0:00:01]} Bxg5 {[%emt 0:00:52]} 42. Bxf7 {[%emt 0:00:02]} Qf6 {[%emt 0:00:16]} 43. Bxg8+ {[%emt 0:01:19]} Kxg8 {[%emt 0:00:06]} 44. Rb2 {[%emt 0:00:37]} Bxe3 {[%emt 0:00:42]} 45. fxe3 {[%emt 0:00:01]} Qf3 {[%emt 0:00:12]} 0-1

[Event "Philip Hogarty Memorial GM 2019"]
[Site "Stillorgan"]
[Date "2019.01.04"]
[Round "4"]
[White "Collins, Sam E."]
[Black "Fernandez, Daniel Howard"]
[Result "0-1"]
[ECO "B06"]
[WhiteElo "2428"]
[BlackElo "2465"]
[Annotator "ChessBase"]
[PlyCount "118"]
[EventDate "2019.01.02"]
[EventType "tourn"]
[EventCountry "IRL"]
[SourceTitle "playchess.com"]
[Source "ChessBase"]
[SourceQuality "1"]
[TimeControl "5400+30"]

1. e4 {[%emt 0:00:00]} g6 {[%emt 0:17:33]} 2. d4 {[%emt 0:00:22]} Bg7 {[%emt 0:00:02]} 3. Nc3 {[%emt 0:00:44]} a6 {[%emt 0:00:53]} 4. f4 {[%emt 0:02:19]} d5 {[%emt 0:02:25]} 5. e5 {[%emt 0:02:14]} b5 {[%emt 0:02:14]} 6. Nf3 {[%emt 0:02:31]} c6 {[%emt 0:05:46]} 7. Bd3 {[%emt 0:10:47]} a5 {[%emt 0:04:49]} 8. O-O {[%emt 0:05:42]} Na6 {[%emt 0:06:21]} 9. a4 {[%emt 0:07:47]} b4 {[%emt 0:00:09]} 10. Ne2 {[%emt 0:00:40]} Bg4 {[%emt 0:00:16]} 11. f5 {[%emt 0:14:04]} gxf5 {[%emt 0:00:42]} 12. Ng3 {[%emt 0:01:39]} e6 {[%emt 0:00:32]} 13. h3 {[%emt 0:01:02]} Bxf3 {[%emt 0:00:42]} 14. Qxf3 {[%emt 0:00:19]} Ne7 {[%emt 0:07:44]} 15. Nh5 {[%emt 0:07:00]} Rg8 {[%emt 0:00:13]} 16. g4 {[%emt 0:01:53]} Kd7 {[%emt 0:04:24]} 17. Kh1 {[%emt 0:04:47]} c5 {[%emt 0:02:46]} 18. gxf5 {[%emt 0:01:17]} Bh8 {[%emt 0:08:06]} 19. fxe6+ {[%emt 0:07:42]} fxe6 {[%emt 0:00:03]} 20. Bxh7 {[%emt 0:00:39]} Rf8 {[%emt 0:00:15]} 21. Nf6+ {[%emt 0:01:33]} Bxf6 {[%emt 0:02:14]} 22. exf6 {[%emt 0:00:06]} Nc6 {[%emt 0:00:09]} 23. dxc5 {[%emt 0:01:32]} Nxc5 {[%emt 0:05:19]} 24. Be3 {[%emt 0:02:22]} Nb7 {[%emt 0:00:59]} 25. Rad1 {[%emt 0:00:35]} Kc7 {[%emt 0:03:43]} 26. c4 {[%emt 0:05:31]} bxc3 {[%emt 0:00:48]} 27. bxc3 {[%emt 0:00:26]} Nd6 {[%emt 0:00:49]} 28. Rb1 {[%emt 0:02:53]} Qd7 {[%emt 0:01:15]} 29. Bb6+ {[%emt 0:01:36]} Kc8 {[%emt 0:00:03]} 30. Qh5 {[%emt 0:01:31]} Nd8 {[%emt 0:03:17]} 31. Bd3 {[%emt 0:01:55]} Qc6 {[%emt 0:20:59]} 32. Kh2 {[%emt 0:01:23]} Kd7 {[%emt 0:00:00]} 33. Bxd8 {[%emt 0:02:35]} Kxd8 {[%emt 0:00:00]} 34. Qh6 {[%emt 0:02:29]} Kc7 {[%emt 0:00:00]} 35. Qe3 {[%emt 0:00:27]} Nf7 {[%emt 0:00:00]} 36. c4 {[%emt 0:00:39]} Qd6+ {[%emt 0:00:00]} 37. Kh1 {[%emt 0:01:15]} Rh8 {[%emt 0:00:00]} 38. Rf3 {[%emt 0:01:54]} d4 {[%emt 0:00:00]} 39. Qe4 {[%emt 0:00:16]} Rab8 {[%emt 0:00:00]} 40. Rxb8 {[%emt 0:00:15]} Rxb8 {[%emt 0:00:00]} 41. Qh7 {[%emt 0:01:23]} Qd7 {[%emt 0:00:00]} 42. Rg3 {[%emt 0:00:43]} Kd6 {[%emt 0:00:00]} 43. Qe4 {[%emt 0:01:31]} Qb7 {[%emt 0:00:00]} 44. Rg7 {[%emt 0:00:50]} Qxe4+ {[%emt 0:00:00]} 45. Bxe4 {[%emt 0:00:02]} Ke5 {[%emt 0:00:00]} 46. Rxf7 {[%emt 0:00:31]} Kxe4 {[%emt 0:00:00]} 47. Rd7 {[%emt 0:00:50]} d3 {[%emt 0:00:00]} 48. f7 {[%emt 0:01:19]} Ke3 {[%emt 0:00:00]} 49. c5 {[%emt 0:00:20]} d2 {[%emt 0:00:00]} 50. c6 {[%emt 0:00:10]} Ke2 {[%emt 0:00:00]} 51. c7 {[%emt 0:00:16]} Rc8 {[%emt 0:00:14]} 52. Rd8 {[%emt 0:00:47]} d1=Q+ {[%emt 0:00:07]} 53. Rxd1 {[%emt 0:00:24]} Kxd1 {[%emt 0:00:03]} 54. Kg2 {[%emt 0:00:10]} Ke2 {[%emt 0:00:28]} 55. Kg3 {[%emt 0:00:16]} Ke3 {[%emt 0:00:52]} 56. Kg4 {[%emt 0:00:41]} Kd4 {[%emt 0:00:13]} 57. h4 {[%emt 0:00:40]} e5 {[%emt 0:00:56]} 58. Kf5 {[%emt 0:00:50]} Kd5 {[%emt 0:00:03]} 59. h5 {[%emt 0:01:46]} e4 {[%emt 0:00:02] Ke5+ Kxe5 [%clk 1:30:30]} 0-1

[Event "Philip Hogarty Memorial GM 2019"]
[Site "Stillorgan"]
[Date "2019.01.04"]
[Round "4"]
[White "Lane, Gary W"]
[Black "O`Donnell, Conor"]
[Result "1-0"]
[ECO "B12"]
[WhiteElo "2358"]
[BlackElo "2358"]
[Annotator "NA"]
[PlyCount "55"]
[EventDate "2019.01.02"]
[EventType "tourn"]
[EventCountry "IRL"]
[SourceTitle "playchess.com"]
[Source "ChessBase"]
[SourceQuality "1"]
[TimeControl "5400+30"]

1. e4 {[%emt 0:00:00]} c6 {[%emt 0:00:00]} 2. d4 {[%emt 0:00:00]} d5 {[%emt 0:00:00]} 3. e5 {[%emt 0:00:56]} Bf5 {[%emt 0:00:00]} 4. h4 {[%emt 0:00:18]} h5 {[%emt 0:00:13]} 5. Bd3 {[%emt 0:00:07]} Bxd3 {[%emt 0:00:11]} 6. Qxd3 {[%emt 0:00:05]} e6 {[%emt 0:00:15]} 7. Bg5 {[%emt 0:01:12]} Qb6 {[%emt 0:00:52]} 8. Nd2 {[%emt 0:04:15]} c5 {[%emt 0:01:12]} 9. c4 {[%emt 0:03:25]} Qxb2 {[%emt 0:01:23]} 10. Rd1 {[%emt 0:00:10]} Nc6 {[%emt 0:00:53]} 11. Ne2 {[%emt 0:02:00]} Nb4 {[%emt 0:07:44]} 12. Qf3 {[%emt 0:07:06]} cxd4 {[%emt 0:24:42]} 13. O-O {[%emt 0:03:28]} d3 {[%emt 0:12:53]} 14. Nf4 {[%emt 0:12:57]} Be7 {[%emt 0:01:12]} 15. cxd5 {[%emt 0:21:52]} exd5 {[%emt 0:00:39]} 16. Rb1 {[%emt 0:20:05]} Qd4 {[%emt 0:12:08]} 17. a3 {[%emt 0:01:48]} Nc6 {[%emt 0:04:45]} 18. Nxd5 {[%emt 0:01:37]} Nxe5 {[%emt 0:07:04]} 19. Nc7+ {[%emt 0:00:24]} Kd8 {[%emt 0:02:34]} 20. Qxb7 {[%emt 0:03:07]} Rc8 {[%emt 0:00:38]} 21. Rb5 {[%emt 0:01:59]} Rxc7 {[%emt 0:05:42]} 22. Rd5+ {[%emt 0:00:10]} Nd7 {[%emt 0:01:41]} 23. Qa8+ {[%emt 0:00:12]} Rc8 {[%emt 0:00:08]} 24. Qxc8+ {[%emt 0:00:06]} Kxc8 {[%emt 0:00:03]} 25. Rxd4 {[%emt 0:00:06]} Ngf6 {[%emt 0:03:07]} 26. Rc1+ {[%emt 0:00:30]} Kd8 {[%emt 0:01:10]} 27. Rxd3 {[%emt 0:00:59]} Re8 {[%emt 0:00:31]} 28. Nf3 {[%emt 0:02:52] Nb8 [%clk 0:00:00]} 1-0

[Event "Philip Hogarty Memorial GM 2019"]
[Site "Stillorgan"]
[Date "2019.01.04"]
[Round "4"]
[White "Daly, Colm"]
[Black "Astaneh Lopez, Alex"]
[Result "1/2-1/2"]
[ECO "E18"]
[WhiteElo "2282"]
[BlackElo "2427"]
[Annotator "NA"]
[PlyCount "59"]
[EventDate "2019.01.02"]
[EventType "tourn"]
[EventCountry "IRL"]
[SourceTitle "playchess.com"]
[Source "ChessBase"]
[SourceQuality "1"]
[TimeControl "5400+30"]

1. Nf3 {[%emt 0:15:46]} Nf6 {[%emt 0:00:04]} 2. c4 {[%emt 0:02:33]} e6 {[%emt 0:00:31]} 3. g3 {[%emt 0:01:19]} b6 {[%emt 0:00:57]} 4. Bg2 {[%emt 0:00:08]} Bb7 {[%emt 0:00:04]} 5. O-O {[%emt 0:00:08]} Be7 {[%emt 0:00:48]} 6. Nc3 {[%emt 0:01:16]} O-O {[%emt 0:00:24]} 7. d4 {[%emt 0:00:22]} Ne4 {[%emt 0:00:22]} 8. Nxe4 {[%emt 0:00:04]} Bxe4 {[%emt 0:00:04]} 9. Nh4 {[%emt 0:00:06]} Bxg2 {[%emt 0:03:07]} 10. Nxg2 {[%emt 0:01:25]} d5 {[%emt 0:00:05]} 11. Qa4 {[%emt 0:00:06]} c6 {[%emt 0:01:51]} 12. Bf4 {[%emt 0:01:23]} Qd7 {[%emt 0:00:04]} 13. Rac1 {[%emt 0:09:17]} b5 {[%emt 0:04:44]} 14. cxb5 {[%emt 0:00:34]} cxb5 {[%emt 0:02:18]} 15. Qa5 {[%emt 0:02:09]} Bd8 {[%emt 0:00:35]} 16. Bc7 {[%emt 0:16:44]} Bg5 {[%emt 0:04:04]} 17. Bf4 {[%emt 0:08:31]} Bd8 {[%emt 0:00:31]} 18. Bc7 {[%emt 0:00:04]} Bg5 {[%emt 0:00:05]} 19. Bf4 {[%emt 0:02:25]} Bd8 {[%emt 1:18:52]} 20. Bc7 Bg5 {[%emt 0:00:30]} 21. e3 Rc8 {[%emt 0:00:30]} 22. Bf4 {[%emt 0:36:40]} Bxf4 {[%emt 0:00:30]} 23. Nxf4 {[%emt 0:00:30]} a6 {[%emt 0:00:30]} 24. Nd3 {[%emt 0:00:30]} Nc6 {[%emt 0:00:30]} 25. Qb6 {[%emt 0:00:30]} Nb8 {[%emt 0:00:30]} 26. Nf4 {[%emt 0:00:30]} Nc6 {[%emt 0:00:30]} 27. Nd3 {[%emt 0:00:30]} Ne7 {[%emt 0:00:30]} 28. Ne5 {[%emt 0:00:30]} Qe8 {[%emt 0:00:30]} 29. Qb7 {[%emt 0:00:30]} f6 {[%emt 0:00:30]} 30. Nd7 {[%emt 0:00:30]} 1/2-1/2

[Event "Philip Hogarty Memorial GM 2019"]
[Site "Stillorgan"]
[Date "2019.01.04"]
[Round "5"]
[White "Fernandez, Daniel Howard"]
[Black "Daly, Colm"]
[Result "1-0"]
[ECO "A13"]
[WhiteElo "2465"]
[BlackElo "2282"]
[Annotator "ChessBase"]
[PlyCount "73"]
[EventDate "2019.01.02"]
[EventType "tourn"]
[EventCountry "IRL"]
[SourceTitle "playchess.com"]
[Source "ChessBase"]
[SourceQuality "1"]
[TimeControl "5400+30"]

1. Nf3 {[%emt 0:11:31]} Nf6 {[%emt 0:09:26]} 2. c4 {[%emt 0:00:32]} e6 {[%emt 0:00:15]} 3. g3 {[%emt 0:00:11]} d5 {[%emt 0:00:28]} 4. Bg2 {[%emt 0:00:03]} d4 {[%emt 0:01:53]} 5. O-O {[%emt 0:00:12]} c5 {[%emt 0:00:05]} 6. b4 {[%emt 0:00:02]} cxb4 {[%emt 0:04:13]} 7. a3 {[%emt 0:00:03]} Nc6 {[%emt 0:02:08]} 8. d3 {[%emt 0:01:17]} a5 {[%emt 0:04:33]} 9. axb4 {[%emt 0:00:11]} Bxb4 {[%emt 0:00:10]} 10. Na3 {[%emt 0:00:03]} O-O {[%emt 0:00:28]} 11. Nc2 {[%emt 0:03:07]} Bc5 {[%emt 0:00:59]} 12. Ba3 {[%emt 0:00:49]} Bxa3 {[%emt 0:01:40]} 13. Nxa3 {[%emt 0:00:02]} Nd7 {[%emt 0:02:42]} 14. Nd2 {[%emt 0:01:19]} Nc5 {[%emt 0:00:30]} 15. Nb3 {[%emt 0:00:24]} Qe7 {[%emt 0:18:34]} 16. Nxc5 {[%emt 0:01:28]} Qxc5 {[%emt 0:01:04]} 17. Qb3 {[%emt 0:00:02]} Nb4 {[%emt 0:06:21]} 18. Rfb1 {[%emt 0:01:41]} Rb8 {[%emt 0:11:50]} 19. Nc2 {[%emt 0:01:31]} Nxc2 {[%emt 0:00:27]} 20. Qxc2 {[%emt 0:00:03]} b6 {[%emt 0:01:12]} 21. Qa4 {[%emt 0:00:08]} Qc7 {[%emt 0:05:26]} 22. Qc6 {[%emt 0:00:02]} Qxc6 {[%emt 0:02:53]} 23. Bxc6 {[%emt 0:00:03]} Ba6 {[%emt 0:00:14]} 24. Ra2 {[%emt 0:01:24]} Rfc8 {[%emt 0:02:05]} 25. Ba4 {[%emt 0:07:03]} b5 {[%emt 0:08:43]} 26. Bxb5 {[%emt 0:04:07]} Bxb5 {[%emt 0:00:22]} 27. cxb5 {[%emt 0:00:19]} Rc5 {[%emt 0:04:52]} 28. Rxa5 {[%emt 0:00:03]} g6 {[%emt 0:01:51]} 29. Ra4 {[%emt 0:00:17]} e5 {[%emt 0:02:30]} 30. b6 {[%emt 0:00:11]} Kg7 {[%emt 0:00:16]} 31. Rc4 {[%emt 0:00:23]} Ra5 {[%emt 0:00:52]} 32. b7 {[%emt 0:00:09]} Ra7 {[%emt 0:00:05]} 33. Rc7 {[%emt 0:00:05]} g5 {[%emt 0:03:34]} 34. g4 {[%emt 0:00:10]} h6 {[%emt 0:00:08]} 35. Kg2 {[%emt 0:00:02]} Kg6 {[%emt 0:01:10]} 36. Rb6+ {[%emt 0:00:12]} Kg7 {[%emt 0:00:08]} 37. h3 {[%emt 0:00:11]} 1-0

[Event "Philip Hogarty Memorial GM 2019"]
[Site "Stillorgan"]
[Date "2019.01.04"]
[Round "5"]
[White "Astaneh Lopez, Alex"]
[Black "Glek, Igor"]
[Result "1-0"]
[ECO "A05"]
[WhiteElo "2427"]
[BlackElo "2453"]
[Annotator "ChessBase"]
[PlyCount "76"]
[EventDate "2019.01.02"]
[EventType "tourn"]
[EventCountry "IRL"]
[SourceTitle "playchess.com"]
[Source "ChessBase"]
[SourceQuality "1"]
[TimeControl "5400+30"]

1. Nf3 {[%emt 0:08:09]} Nf6 {[%emt 0:04:14]} 2. g3 {[%emt 0:01:16]} b5 {[%emt 0:01:56]} 3. d3 {[%emt 0:02:28]} Bb7 {[%emt 0:00:46]} 4. e4 {[%emt 0:00:22]} d6 {[%emt 0:08:45]} 5. Nc3 {[%emt 0:00:35]} b4 {[%emt 0:01:12]} 6. Ne2 {[%emt 0:00:05]} g6 {[%emt 0:04:12]} 7. Bg2 {[%emt 0:01:33]} Bg7 {[%emt 0:02:10]} 8. O-O {[%emt 0:00:15]} Nbd7 {[%emt 0:14:28]} 9. Bd2 {[%emt 0:01:16]} a5 {[%emt 0:00:32]} 10. Qc1 {[%emt 0:00:05]} O-O {[%emt 0:03:00]} 11. Bh6 {[%emt 0:01:00]} e5 {[%emt 0:00:10]} 12. Bg5 {[%emt 0:01:30]} Nc5 {[%emt 0:00:51]} 13. Be3 {[%emt 0:03:33]} Nfd7 {[%emt 0:06:18]} 14. Nd2 {[%emt 0:00:08]} f5 {[%emt 0:01:21]} 15. exf5 {[%emt 0:02:46]} Bxg2 {[%emt 0:00:09]} 16. Kxg2 {[%emt 0:00:04]} gxf5 {[%emt 0:47:56]} 17. f4 {[%emt 0:00:07]} Qe8 {[%emt 0:00:00]} 18. fxe5 {[%emt 0:05:31]} dxe5 {[%emt 0:00:00]} 19. Nb3 {[%emt 0:00:59]} Ne6 {[%emt 0:00:00]} 20. Bh6 {[%emt 0:00:06]} a4 {[%emt 0:00:00]} 21. Bxg7 {[%emt 0:00:06]} Kxg7 {[%emt 0:00:00]} 22. Nd2 {[%emt 0:00:04]} Kh8 {[%emt 0:00:00]} 23. Nf3 {[%emt 0:04:32]} f4 {[%emt 0:00:00]} 24. Qd2 {[%emt 0:00:47]} c5 {[%emt 0:00:00]} 25. Rae1 {[%emt 0:00:08]} Qh5 {[%emt 0:00:00]} 26. a3 {[%emt 0:03:00]} Nf6 {[%emt 0:00:30]} 27. Nxf4 {[%emt 0:00:46]} Nxf4+ {[%emt 0:00:47]} 28. gxf4 {[%emt 0:00:04]} Ng4 {[%emt 0:01:09]} 29. axb4 {[%emt 0:07:50]} cxb4 {[%emt 0:01:37]} 30. Re4 {[%emt 0:00:17]} a3 {[%emt 0:00:28]} 31. bxa3 {[%emt 0:01:17]} bxa3 {[%emt 0:00:02]} 32. h3 {[%emt 0:00:27]} a2 {[%emt 0:00:43]} 33. Qc3 {[%emt 0:00:23]} Rfc8 {[%emt 0:02:22]} 34. Qb2 {[%emt 0:00:05]} a1=Q {[%emt 0:01:22]} 35. Rxa1 {[%emt 0:00:05]} Rxa1 {[%emt 0:00:00]} 36. Qxa1 {[%emt 0:01:05]} Rxc2+ {[%emt 0:00:18]} 37. Kg3 {[%emt 0:00:04]} Nf6 {[%emt 0:00:41]} 38. Rxe5 {[%emt 0:02:45]} Qf7 {[%emt 0:01:01]} 1-0

[Event "Philip Hogarty Memorial GM 2019"]
[Site "Stillorgan"]
[Date "2019.01.04"]
[Round "5"]
[White "Quinn, Mark"]
[Black "Maksimenko, Andrei"]
[Result "1/2-1/2"]
[ECO "A09"]
[WhiteElo "2386"]
[BlackElo "2484"]
[Annotator "ChessBase"]
[PlyCount "33"]
[EventDate "2019.01.02"]
[EventType "tourn"]
[EventCountry "IRL"]
[SourceTitle "playchess.com"]
[Source "ChessBase"]
[SourceQuality "1"]
[TimeControl "5400+30"]

1. Nf3 {[%emt 0:00:26]} d5 {[%emt 0:01:07]} 2. c4 {[%emt 0:00:29]} dxc4 {[%emt 0:00:36]} 3. g3 {[%emt 0:00:33]} a6 {[%emt 0:06:41]} 4. Bg2 {[%emt 0:07:46]} Nf6 {[%emt 0:13:33]} 5. O-O {[%emt 0:09:17]} Nc6 {[%emt 0:07:09]} 6. b3 {[%emt 0:09:51]} cxb3 {[%emt 0:03:17]} 7. Qxb3 {[%emt 0:00:34]} e6 {[%emt 0:04:21]} 8. d4 {[%emt 0:04:16]} Be7 {[%emt 0:04:03]} 9. Rd1 {[%emt 0:06:15]} O-O {[%emt 0:01:12]} 10. Nc3 {[%emt 0:02:01]} Rb8 {[%emt 0:19:17]} 11. e4 {[%emt 0:05:54]} Na5 {[%emt 0:20:28]} 12. Qa4 {[%emt 0:48:38]} b6 {[%emt 0:14:16]} 13. Bf4 {[%emt 0:00:30]} Bb7 {[%emt 0:00:30]} 14. Qc2 {[%emt 0:00:30]} Bc8 {[%emt 0:00:30]} 15. Bc1 b5 {[%emt 0:00:30]} 16. d5 {[%emt 0:01:00]} Qe8 {[%emt 0:00:30]} 17. Bf4 {[%emt 0:00:30]} 1/2-1/2

[Event "Philip Hogarty Memorial GM 2019"]
[Site "Stillorgan"]
[Date "2019.01.04"]
[Round "5"]
[White "O`Donnell, Conor"]
[Black "Collins, Sam E."]
[Result "0-1"]
[ECO "E62"]
[WhiteElo "2358"]
[BlackElo "2428"]
[Annotator "NA"]
[PlyCount "50"]
[EventDate "2019.01.02"]
[EventType "tourn"]
[EventCountry "IRL"]
[SourceTitle "playchess.com"]
[Source "ChessBase"]
[SourceQuality "1"]
[TimeControl "5400+30"]

1. d4 {[%emt 0:00:00]} Nf6 {[%emt 0:00:00]} 2. c4 {[%emt 0:00:00]} g6 {[%emt 0:00:00]} 3. g3 {[%emt 0:00:05]} Bg7 {[%emt 0:00:02]} 4. Bg2 {[%emt 0:00:06]} O-O {[%emt 0:00:06]} 5. Nc3 {[%emt 0:00:14]} d6 {[%emt 0:00:11]} 6. Nf3 {[%emt 0:00:06]} Nc6 {[%emt 0:00:10]} 7. O-O {[%emt 0:00:06]} e5 {[%emt 0:00:34]} 8. dxe5 {[%emt 0:00:18]} dxe5 {[%emt 0:00:19]} 9. Bg5 {[%emt 0:00:22]} Be6 {[%emt 0:00:17]} 10. Qc1 {[%emt 0:00:25]} Qc8 {[%emt 0:00:48]} 11. Rd1 {[%emt 0:02:38]} Bh3 {[%emt 0:00:19]} 12. Bxf6 {[%emt 0:00:56]} Bxf6 {[%emt 0:00:07]} 13. Nd5 {[%emt 0:00:10]} Bg7 {[%emt 0:00:14]} 14. Bxh3 {[%emt 0:00:50]} Qxh3 {[%emt 0:00:07]} 15. Nxc7 {[%emt 0:00:14]} Rac8 {[%emt 0:00:07]} 16. Nd5 {[%emt 0:00:12]} Rce8 {[%emt 0:00:07]} 17. b4 {[%emt 0:24:20]} e4 {[%emt 0:02:36]} 18. Nh4 {[%emt 0:01:08]} h6 {[%emt 0:06:06]} 19. c5 {[%emt 0:10:22]} g5 {[%emt 0:03:11]} 20. Ng2 {[%emt 0:01:17]} Ne5 {[%emt 0:06:13]} 21. Nge3 {[%emt 0:12:32]} f5 {[%emt 0:00:44]} 22. Rd2 {[%emt 0:03:47]} f4 {[%emt 0:01:28]} 23. Qf1 {[%emt 0:01:53]} Qh5 {[%emt 0:05:40]} 24. Nc2 {[%emt 0:01:13]} Ng4 {[%emt 0:05:05]} 25. h3 {[%emt 0:00:35]} fxg3 {[%emt 0:00:18]} 0-1